bitfinex/quotes_SOLUSD_20220114
["timestamp","ask_amount","ask_price","bid_price","bid_amount"]
[1642165150399,2.781,143.83,143.78,5.9466878]
[1642165150698,10.4372,143.81,143.78,5.9466878]
[1642165150898,9.96,143.8,143.78,5.9466878]
[1642165151100,24.91578713,143.79,143.78,5.9466878]
[1642165151499,25.16578713,143.79,143.78,5.9466878]
[1642165151700,10.6867,143.79,143.78,5.9466878]
[1642165151900,0.26,143.79,143.78,5.9466878]
[1642165152099,9.96,143.8,143.78,6.06439993]
[1642165152299,9.96,143.8,143.74,5.9466878]
[1642165152698,20.3955,143.8,143.74,5.9466878]
[1642165152901,9.96,143.8,143.74,5.4466878]
[1642165153299,10.21,143.8,143.74,5.4466878]
[1642165153500,9.96,143.8,143.74,5.4466878]
[1642165153799,9.96,143.8,143.75,2.782]
[1642165153999,10.4361,143.79,143.75,2.782]
[1642165154206,10.4361,143.79,143.74,5.4466878]
[1642165154400,10.6961,143.79,143.74,5.4466878]
[1642165154799,10.9461,143.79,143.74,5.4466878]
[1642165156502,10.4361,143.79,143.74,5.4466878]
[1642165156703,9.96,143.8,143.74,5.4466878]
[1642165156902,9.96,143.8,143.71,10.73485562]
[1642165157201,9.96,143.8,143.71,10.98485562]
[1642165157404,32.81770695,143.8,143.71,10.98485562]
[1642165157602,32.56770695,143.8,143.71,12.4691225]
[1642165158302,43.00320695,143.8,143.71,22.9046225]
[1642165158502,43.00320695,143.8,143.71,23.1646225]
[1642165158903,20.3955,143.8,143.71,23.1646225]
[1642165159504,9.96,143.8,143.71,23.1646225]
[1642165159804,9.96,143.8,143.71,92.6646225]
[1642165161104,9.96,143.8,143.72,7.95285562]
[1642165161307,9.96,143.8,143.73,2.782]
[1642165161506,9.96,143.8,143.73,3.292]
[1642165162305,9.96,143.8,143.73,4.77626688]
[1642165162506,10.435,143.81,143.73,4.77626688]
[1642165162711,2.782,143.83,143.73,15.21026688]
[1642165162909,2.782,143.83,143.73,31.42696512]
[1642165163106,459.66701951,143.91,143.74,30.01978277]
[1642165163307,459.66701951,143.91,143.75,59.4287]
[1642165163508,459.66701951,143.91,143.79,69.5]
[1642165163708,25.31563023,143.9,143.83,10.4259]
[1642165163908,25.31563023,143.9,143.8,26.7372]
[1642165164110,2.779,143.89,143.8,26.7372]
[1642165164551,3.039,143.89,143.8,26.7372]
[1642165164709,3.039,143.89,143.8,37.1662]
[1642165164710,13.7184,143.89,143.8,37.1662]
[1642165164909,13.4584,143.89,143.8,37.4162]
[1642165165110,2.779,143.89,143.8,37.4162]
[1642165165709,2.779,143.89,143.8,37.6762]
[1642165166314,25.31563023,143.9,143.8,37.4162]
[1642165166913,2.779,143.89,143.8,37.4162]
[1642165167113,25.31563023,143.9,143.8,43.4162]
[1642165167514,25.31563023,143.9,143.8,43.6762]
[1642165167916,25.31563023,143.9,143.8,37.4162]
[1642165168119,25.56563023,143.9,143.8,37.1662]
[1642165168321,2.779,143.89,143.8,37.1662]
[1642165168520,3.289,143.89,143.8,37.1662]
[1642165168720,3.039,143.89,143.8,37.1662]
[1642165169021,3.289,143.89,143.8,37.1662]
[1642165169524,13.7177,143.89,143.8,34.3872]
[1642165170023,3.289,143.89,143.8,34.3872]
[1642165170222,2.779,143.89,143.8,34.6372]
[1642165170421,2.779,143.92,143.86,10.4244]
[1642165170627,12.739,143.93,143.86,10.4244]
[1642165170823,9.96,143.93,143.86,10.4244]
[1642165171223,29.2023486,143.92,143.86,10.4244]
[1642165171426,29.2023486,143.92,143.81,26.3638]
[1642165171825,29.7123486,143.92,143.81,26.3638]
[1642165172349,40.1384486,143.92,143.84,10.4262]
[1642165172749,29.7123486,143.92,143.84,10.4262]
[1642165172949,29.4523486,143.92,143.84,10.4262]
[1642165173154,29.2023486,143.92,143.84,10.6762]
[1642165173552,26.4233486,143.92,143.85,2.779]
[1642165173754,36.8483486,143.92,143.86,10.4249]
[1642165174854,36.8483486,143.92,143.85,13.2046]
[1642165175055,37.1083486,143.92,143.85,10.4256]
[1642165175455,37.3583486,143.92,143.83,2.779]
[1642165175656,40.1373486,143.92,143.83,2.779]
[1642165176456,40.1373486,143.92,143.79,2.779]
[1642165176655,50.0973486,143.92,143.8,25.7546801]
[1642165177056,50.0973486,143.92,143.8,26.0046801]
[1642165177356,50.0973486,143.92,143.81,10.4284]
[1642165178355,50.0973486,143.92,143.8,26.0046801]
[1642165178655,50.0973486,143.92,143.81,2.779]
[1642165178859,50.0973486,143.92,143.8,2.779]
[1642165179962,50.0973486,143.92,143.79,23.8495]
[1642165180165,50.0973486,143.92,143.78,2.779]
[1642165180363,10.4323,143.84,143.77,2.779]
[1642165180564,10.9423,143.84,143.76,27.2717]
[1642165181165,10.9423,143.84,143.76,24.4907]
[1642165181464,13.7233,143.84,143.75,2.781]
[1642165181668,6.98096943,143.83,143.74,2.781]
[1642165181868,10.4329,143.81,143.74,2.781]
[1642165182272,10.6929,143.81,143.74,2.781]
[1642165182667,10.6929,143.81,143.74,13.2142]
[1642165184714,10.6929,143.81,143.74,13.4642]
[1642165186915,10.6929,143.81,143.74,13.2142]
[1642165187517,10.6929,143.81,143.74,13.4642]
[1642165188018,0.26,143.81,143.74,13.4642]
[1642165188420,7.24096943,143.83,143.74,13.4642]
[1642165189319,17.67196943,143.83,143.74,13.4642]
[1642165189718,17.67196943,143.83,143.74,13.2142]
[1642165189918,17.92196943,143.83,143.74,13.2142]
[1642165190923,17.67196943,143.83,143.74,13.2142]
[1642165191220,17.67196943,143.83,143.74,13.4642]
[1642165192022,17.92196943,143.83,143.74,13.4642]
[1642165193523,10.941,143.83,143.74,82.9642]
[1642165193721,10.941,143.83,143.74,83.2242]
[1642165193921,10.681,143.83,143.74,83.2242]
[1642165195225,10.431,143.83,143.74,83.2242]
[1642165195832,10.4299,143.85,143.75,9.96]
[1642165196024,2.781,143.89,143.76,2.781]
[1642165196226,47.7982,143.9,143.81,10.428]
[1642165196625,77.94057854,143.9,143.82,15.14870708]
[1642165197024,10.4276,143.88,143.82,15.14870708]
[1642165197522,10.6776,143.88,143.82,15.14870708]
[1642165198630,10.6776,143.88,143.81,10.4286]
[1642165198825,10.6776,143.88,143.8,10.4295]
[1642165199025,10.6776,143.88,143.79,2.779]
[1642165199225,10.4311,143.83,143.79,2.779]
[1642165199627,10.4311,143.83,143.76,28.71514171]
[1642165200128,10.4311,143.83,143.76,28.96514171]
[1642165200427,10.4311,143.83,143.78,10.4308]
[1642165200627,3.26193949,143.84,143.78,10.4308]
[1642165200628,10.4304,143.84,143.78,10.4308]
[1642165200826,2.779,143.87,143.78,10.6808]
[1642165201029,3.029,143.87,143.78,10.6808]
[1642165201234,2.781,143.88,143.79,2.781]
[1642165201430,24.1473,143.89,143.79,2.781]
[1642165201628,24.1473,143.89,143.79,8.341]
[1642165201829,34.5741,143.89,143.82,10.4275]
[1642165202059,34.5741,143.89,143.82,27.93904024]
[1642165202731,10.4268,143.89,143.82,10.4275]
[1642165202928,10.6868,143.89,143.82,10.4275]
[1642165203132,10.4268,143.89,143.82,10.4275]
[1642165203533,10.4268,143.89,143.79,2.781]
[1642165203932,10.4268,143.89,143.77,31.90724849]
[1642165203933,10.6768,143.89,143.77,31.90724849]
[1642165204132,10.4326,143.83,143.77,31.90724849]
[1642165204334,10.4326,143.83,143.76,2.779]
[1642165204533,10.4326,143.83,143.74,2.781]
[1642165204732,10.4326,143.83,143.75,10.4327]
[1642165204933,2.781,143.86,143.76,2.781]
[1642165205132,12.741,143.9,143.77,5.46444908]
[1642165205331,10.4276,143.88,143.78,28.60394264]
[1642165205531,10.4276,143.88,143.78,29.11394264]
[1642165205733,10.6876,143.88,143.78,29.11394264]
[1642165205934,10.6876,143.88,143.78,30.60103245]
[1642165206133,2.781,143.9,143.8,69.5]
[1642165206336,22.6427,143.93,143.81,2.779]
[1642165206337,2.779,143.93,143.81,2.779]
[1642165206633,6.21696254,143.96,143.82,9.96]
[1642165206933,3.43796254,143.96,143.83,2.779]
[1642165207131,3.43796254,143.96,143.84,38.33206413]
[1642165207333,3.43796254,143.96,143.85,7.779]
[1642165207535,3.43796254,143.96,143.86,9.96]
[1642165207732,23.75001381,144.0,143.86,15.548]
[1642165207932,23.75001381,144.0,143.87,23.1573]
[1642165208133,23.75001381,144.0,143.88,9.96]
[1642165208339,24.01001381,144.0,143.88,9.96]
[1642165208534,24.26001381,144.0,143.88,9.96]
[1642165208837,34.68041381,144.0,143.9,36.14941145]
[1642165209036,2.778,143.99,143.9,36.39941145]
[1642165209435,0.33511148,143.95,143.9,36.39941145]
[1642165209641,0.67022296,143.95,143.9,36.39941145]
[1642165210538,0.67022296,143.95,143.9,42.65941145]
[1642165210739,0.67022296,143.95,143.91,2.779]
[1642165210939,0.00022296,143.95,143.93,10.4174]
[1642165211140,0.00022296,143.95,143.94,152.34239993]
[1642165211343,0.00022296,143.95,143.94,158.29539993]
[1642165211540,0.00022296,143.95,143.94,171.54339993]
[1642165211740,3.43796254,144.03,143.95,74.0]
[1642165211940,3.43796254,144.05,143.99,10.4148]
[1642165212941,13.1933,144.07,143.99,10.4148]
[1642165213140,13.4433,144.07,143.99,10.4148]
[1642165214543,13.7033,144.07,143.99,10.4148]
[1642165214744,1.86017289,144.05,143.99,10.4148]
[1642165214944,2.37017289,144.05,143.99,10.6648]
[1642165215145,1.86017289,144.05,143.99,10.6648]
[1642165215345,1.86017289,144.05,143.99,10.9248]
[1642165216043,1.86017289,144.05,144.0,72.277]
[1642165216243,1.86017289,144.05,144.02,30.4584778]
[1642165216443,1.86017289,144.05,144.03,6.06439993]
[1642165216844,1.86017289,144.08,144.03,6.06439993]
[1642165217071,2.11017289,144.08,144.03,6.06439993]
[1642165217269,2.11017289,144.08,143.99,1.98653647]
[1642165217270,13.1898,144.07,144.0,10.4141]
[1642165217469,13.4398,144.07,144.0,10.6641]
[1642165217869,13.6998,144.07,144.0,10.6641]
[1642165218070,4.88517289,144.07,144.0,10.6641]
[1642165218271,2.11017289,144.07,144.0,10.6641]
[1642165218472,1.86017289,144.07,144.0,10.4141]
[1642165218671,2.11017289,144.07,144.0,10.4141]
[1642165219472,2.37017289,144.07,144.0,10.4141]
[1642165219871,2.37017289,144.07,144.0,10.6641]
[1642165220574,5.14717289,144.07,144.0,10.4141]
[1642165222277,15.56167289,144.07,144.0,10.4141]
[1642165222476,12.78467289,144.07,144.0,10.6641]
[1642165222676,12.78467289,144.07,144.0,10.4141]
[1642165223076,12.27467289,144.07,144.0,10.6641]
[1642165223276,1.86017289,144.07,144.0,10.6641]
[1642165223477,1.86017289,144.07,144.0,80.4241]
[1642165223677,1.86017289,144.07,144.0,10.9241]
[1642165224978,1.86017289,144.09,144.03,10.412]
[1642165225479,1.86017289,144.09,144.03,10.662]
[1642165227180,1.86017289,144.09,144.06,10.4099]
[1642165227382,1.86017289,144.09,144.07,6.06439993]
[1642165227582,1.86017289,144.09,144.08,63.775]
[1642165227980,1.86017289,144.09,144.08,77.15450172]
[1642165228181,1.86017289,144.11,144.08,77.15450172]
[1642165228578,1.86017289,144.11,144.09,6.06439993]
[1642165228979,1.86017289,144.11,144.09,6.31439993]
[1642165229179,1.86017289,144.12,144.09,6.31439993]
[1642165229583,1.86017289,144.12,144.09,6.06439993]
[1642165229982,1.86017289,144.12,144.09,3.03219997]
[1642165230182,1.86017289,144.12,144.08,2.775]
[1642165230384,1.86017289,144.13,144.08,2.775]
[1642165230582,2.37017289,144.13,144.08,2.775]
[1642165230781,6.96714377,144.12,144.08,2.775]
[1642165230981,7.22714377,144.12,144.08,2.775]
[1642165231783,1.86017289,144.11,144.08,2.775]
[1642165232082,12.78127289,144.11,144.04,2.775]
[1642165232283,15.55627289,144.11,144.03,51.8343]
[1642165232589,12.78127289,144.11,144.03,3.025]
[1642165232984,1.86017289,144.1,144.03,3.025]
[1642165233283,10.414,144.07,144.03,2.775]
[1642165233483,10.664,144.07,144.03,2.275]
[1642165233684,10.924,144.07,144.03,2.275]
[1642165234284,10.4171,144.03,144.0,1.98653647]
[1642165234483,10.6771,144.03,144.01,3.03219997]
[1642165234684,10.9271,144.03,144.0,1.98653647]
[1642165235091,10.9271,144.03,143.91,2.777]
[1642165235092,10.9271,144.03,143.98,1.98653647]
[1642165235287,20.8871,144.03,143.98,1.98653647]
[1642165235486,74.0,144.02,143.95,3.97735927]
[1642165235687,10.4229,143.99,143.95,3.97735927]
[1642165235892,2.778,143.98,143.95,3.97735927]
[1642165236287,0.51,143.98,143.91,3.97735927]
[1642165236686,10.4223,143.97,143.91,3.97735927]
[1642165237094,10.9323,143.97,143.91,3.97735927]
[1642165237793,10.9323,143.97,143.9,34.81202791]
[1642165239391,10.9323,143.97,143.89,10.4222]
[1642165240795,10.9323,143.97,143.89,13.4512]
[1642165240995,74.0,143.95,143.89,2.779]
[1642165241194,74.0,143.95,143.87,3.97735927]
[1642165241195,79.9276,143.92,143.87,3.97735927]
[1642165241396,10.4276,143.92,143.87,3.97735927]
[1642165241796,9.96,143.91,143.87,3.97735927]
[1642165242095,10.4281,143.89,143.87,3.97735927]
[1642165242495,10.9381,143.89,143.87,3.97735927]
[1642165242695,10.9381,143.89,143.85,27.38862123]
[1642165243524,2.779,143.92,143.85,27.63862123]
[1642165243722,9.96,143.93,143.86,2.779]
[1642165243925,2.779,143.95,143.86,3.039]
[1642165243926,12.739,143.95,143.86,3.039]
[1642165244122,9.96,143.95,143.86,3.289]
[1642165244323,10.21,143.95,143.86,3.289]
[1642165244523,8.21,143.95,143.86,3.289]
[1642165244725,8.21,143.95,143.86,3.029]
[1642165244923,10.4238,143.93,143.86,2.779]
[1642165245124,2.779,143.92,143.85,27.38862123]
[1642165245527,3.289,143.92,143.85,27.38862123]
[1642165246123,10.4264,143.9,143.85,27.38862123]
[1642165246523,10.9364,143.9,143.85,27.38862123]
[1642165247730,10.9364,143.9,143.82,10.4268]
[1642165247927,10.9364,143.9,143.81,2.779]
[1642165248136,23.6754,143.9,143.81,2.779]
[1642165248327,10.4297,143.85,143.81,2.779]
[1642165248529,10.6897,143.85,143.81,2.779]
[1642165248728,10.6897,143.85,143.81,30.09506156]
[1642165248928,0.26,143.85,143.81,30.09506156]
[1642165249429,34.7657,143.89,143.81,30.09506156]
[1642165249430,35.2757,143.89,143.81,30.09506156]
[1642165250031,35.2757,143.89,143.81,27.31606156]
[1642165250231,38.0547,143.89,143.81,27.31606156]
[1642165250430,10.4289,143.86,143.81,27.31606156]
[1642165250841,10.6889,143.86,143.81,27.31606156]
[1642165252236,10.6889,143.86,143.8,2.779]
[1642165252436,10.6889,143.86,143.8,3.029]
[1642165253636,10.6889,143.86,143.8,2.779]
[1642165253839,10.9389,143.86,143.8,2.779]
[1642165255440,10.6789,143.86,143.8,2.779]
[1642165256440,10.6789,143.86,143.78,30.64352467]
[1642165256942,10.9389,143.86,143.78,30.89352467]
[1642165257543,10.9389,143.86,143.78,31.15352467]
[1642165258343,10.9389,143.86,143.78,41.58332467]
[1642165259443,10.9389,143.86,143.78,41.07332467]
[1642165259646,10.9389,143.86,143.78,30.64352467]
[1642165259843,20.8989,143.86,143.78,30.64352467]
[1642165260246,20.8989,143.86,143.74,5.9596094]
[1642165260247,72.281,143.85,143.74,5.9596094]
[1642165260445,10.4323,143.82,143.75,2.781]
[1642165260645,9.96,143.84,143.74,5.9596094]
[1642165260646,2.781,143.81,143.74,5.9596094]
[1642165260847,0.51,143.82,143.74,5.9596094]
[1642165261044,2.782,143.81,143.74,5.9596094]
[1642165261246,31.59002116,143.81,143.74,5.9596094]
[1642165261446,2.782,143.8,143.74,5.9596094]
[1642165261845,3.292,143.8,143.74,5.9596094]
[1642165262045,3.292,143.8,143.7,3.97899375]
[1642165262245,3.292,143.8,143.7,6.76099375]
[1642165262445,10.436,143.78,143.7,7.01099375]
[1642165262644,40.62282154,143.78,143.7,6.76099375]
[1642165262845,40.88282154,143.78,143.7,6.76099375]
[1642165263247,40.88282154,143.78,143.71,3.97899375]
[1642165263450,10.946,143.78,143.71,3.97899375]
[1642165264050,13.728,143.78,143.71,3.97899375]
[1642165264451,13.728,143.78,143.7,3.97899375]
[1642165265351,27.25904839,143.77,143.7,3.97899375]
[1642165265550,10.4388,143.73,143.7,3.97899375]
[1642165265953,10.9488,143.73,143.7,3.97899375]
[1642165266150,10.9488,143.73,143.68,9.93860315]
[1642165266355,10.9488,143.73,143.68,3.97899375]
[1642165266651,0.26,143.73,143.68,3.47899375]
[1642165266850,9.96,143.77,143.68,3.72899375]
[1642165267050,10.21,143.77,143.69,2.783]
[1642165267252,9.96,143.77,143.69,2.783]
[1642165267452,38.81788831,143.77,143.69,2.783]
[1642165267652,38.81788831,143.77,143.67,2.782]
[1642165268053,38.81788831,143.77,143.67,3.292]
[1642165268556,10.4361,143.76,143.67,3.032]
[1642165268952,10.9461,143.76,143.67,3.032]
[1642165270256,10.9461,143.76,143.67,2.782]
[1642165270658,20.9061,143.76,143.67,2.782]
[1642165270856,10.4406,143.71,143.66,2.783]
[1642165271063,10.9506,143.71,143.65,5.9596094]
[1642165271256,27.90280414,143.7,143.65,5.9596094]
[1642165271457,28.41280414,143.7,143.65,5.9596094]
[1642165271858,10.442,143.68,143.65,5.9596094]
[1642165272060,17.387,143.68,143.65,5.9596094]
[1642165272262,27.347,143.68,143.65,5.9596094]
[1642165272860,29.88377337,143.67,143.62,5.9596094]
[1642165273062,33.17677337,143.67,143.62,5.9596094]
[1642165273361,10.4465,143.65,143.62,5.9596094]
[1642165273564,10.9565,143.65,143.62,5.9596094]
[1642165274163,10.9565,143.65,143.58,0.17412423]
[1642165274361,10.447,143.62,143.58,0.17412423]
[1642165274661,10.707,143.62,143.57,15.87842431]
[1642165274861,10.707,143.62,143.57,13.92130008]
[1642165275261,44.0,143.61,143.52,9.96]
[1642165275464,10.4488,143.59,143.51,8.76006665]
[1642165275662,10.4488,143.59,143.52,2.786]
[1642165276067,10.7088,143.59,143.52,2.786]
[1642165276265,2.786,143.62,143.52,14.62663005]
[1642165276462,39.6044,143.77,143.52,14.62663005]
[1642165276463,10.4457,143.63,143.52,100.07773005]
[1642165276664,10.4457,143.63,143.52,101.56757936]
[1642165276964,2.786,143.7,143.52,108.6047201]
[1642165277191,37.28713119,143.66,143.52,156.6252201]
[1642165277489,37.28713119,143.66,143.52,93.1252201]
[1642165277897,37.28713119,143.66,143.52,93.3852201]
[1642165278092,37.79713119,143.66,143.52,93.1252201]
[1642165278291,37.79713119,143.66,143.52,87.6232201]
[1642165278491,10.445,143.64,143.52,81.6232201]
[1642165278892,31.08751128,143.63,143.52,81.6232201]
[1642165279192,31.34751128,143.63,143.52,81.6232201]
[1642165280297,10.4465,143.62,143.53,69.5]
[1642165280494,45.0314,143.66,143.54,2.786]
[1642165280894,45.0314,143.66,143.54,3.036]
[1642165281299,28.01228405,143.65,143.55,3.74252723]
[1642165281495,0.25,143.65,143.55,3.99252723]
[1642165281696,2.785,143.67,143.56,79.46]
[1642165281895,9.96,143.72,143.57,2.785]
[1642165281896,2.785,143.71,143.57,2.785]
[1642165282102,2.785,143.71,143.58,9.96]
[1642165282299,2.785,143.71,143.59,2.783]
[1642165282503,35.30472212,143.72,143.6,11.84063005]
[1642165282697,35.30472212,143.72,143.61,2.783]
[1642165282896,25.34472212,143.72,143.61,2.783]
[1642165283097,25.59472212,143.72,143.61,13.474]
[1642165283299,25.34472212,143.72,143.63,3.74252723]
[1642165283497,2.783,143.76,143.64,2.783]
[1642165283904,2.783,143.76,143.64,3.033]
[1642165284096,13.2197,143.76,143.67,10.4373]
[1642165284396,31.2794954,143.75,143.67,10.4373]
[1642165284804,2.783,143.74,143.67,10.4373]
[1642165285006,31.2794954,143.75,143.67,10.4373]
[1642165285007,31.2794954,143.75,143.67,10.6873]
[1642165285304,31.2794954,143.75,143.67,10.4373]
[1642165285907,31.2794954,143.75,143.67,10.6873]
[1642165286307,41.7168954,143.75,143.67,10.6873]
[1642165286808,43.66767128,143.75,143.66,10.4393]
[1642165287009,2.783,143.74,143.63,9.96]
[1642165287212,2.783,143.74,143.64,2.783]
[1642165287406,13.4808,143.74,143.64,2.783]
[1642165288416,13.4808,143.74,143.67,10.4383]
[1642165288815,13.7308,143.74,143.67,10.4383]
[1642165289616,13.7308,143.74,143.66,10.4393]
[1642165290018,79.46,143.73,143.6,2.783]
[1642165290220,10.4418,143.69,143.58,2.783]
[1642165290418,72.283,143.68,143.54,19.05466665]
[1642165290621,34.8214,143.66,143.54,19.05466665]
[1642165290820,31.67020239,143.65,143.54,8.76006665]
[1642165291020,9.96,143.64,143.54,8.76006665]
[1642165291221,10.4485,143.59,143.54,8.76006665]
[1642165291421,2.786,143.61,143.51,15.93400266]
[1642165291620,24.7141811,143.62,143.51,15.93400266]
[1642165291922,24.9641811,143.62,143.53,10.4477]
[1642165292120,24.9641811,143.62,143.54,2.786]
[1642165292321,10.447,143.61,143.54,2.786]
[1642165292521,10.447,143.61,143.52,2.786]
[1642165292923,10.447,143.61,143.52,13.2345]
[1642165293123,2.786,143.6,143.49,2.786]
[1642165293322,12.746,143.6,143.49,2.786]
[1642165293524,12.996,143.6,143.49,2.786]
[1642165293721,69.5,143.56,143.49,2.786]
[1642165293923,34.8503,143.54,143.49,0.0001]
[1642165294125,74.0,143.53,143.46,8.76006665]
[1642165294323,72.287,143.52,143.43,8.76006665]
[1642165294525,82.507,143.52,143.43,8.26006665]
[1642165294723,84.45777588,143.52,143.43,8.26006665]
[1642165294922,10.4573,143.49,143.43,8.26006665]
[1642165295321,10.9673,143.49,143.43,8.26006665]
[1642165295521,10.9673,143.49,143.41,14.36462262]
[1642165295723,10.9673,143.49,143.41,0.34851598]
[1642165296948,10.7073,143.49,143.41,0.34851598]
[1642165297550,2.787,143.5,143.41,10.80551598]
[1642165297753,12.747,143.54,143.42,2.787]
[1642165297950,9.96,143.54,143.42,3.037]
[1642165298149,2.787,143.53,143.42,3.037]
[1642165298551,2.787,143.53,143.43,4.32283627]
[1642165298754,10.4531,143.53,143.46,10.4533]
[1642165298953,30.93383079,143.51,143.46,10.4533]
[1642165299352,31.19383079,143.51,143.46,10.4533]
[1642165299554,0.26,143.51,143.46,10.4533]
[1642165299954,3.047,143.52,143.46,10.4533]
[1642165300165,10.7142,143.52,143.45,10.4542]
[1642165300354,10.9642,143.52,143.43,7.35983627]
[1642165300555,10.7142,143.52,143.43,7.35983627]
[1642165300954,0.26,143.52,143.43,7.35983627]
[1642165301357,3.047,143.53,143.43,7.35983627]
[1642165301555,20.4106,143.57,143.44,10.4545]
[1642165301756,2.787,143.56,143.45,2.787]
[1642165301956,9.96,143.57,143.45,0.25]
[1642165302156,9.96,143.57,143.46,2.787]
[1642165302360,9.96,143.57,143.47,11.26032101]
[1642165302559,2.787,143.56,143.47,11.51032101]
[1642165302758,13.2379,143.56,143.5,10.4492]
[1642165303562,41.55723228,143.56,143.47,11.51032101]
[1642165303760,41.81723228,143.56,143.47,11.51032101]
[1642165304359,41.81723228,143.56,143.49,10.4514]
[1642165304360,31.36633228,143.56,143.49,10.4514]
[1642165304562,31.36633228,143.56,143.5,72.286]
[1642165304563,2.787,143.56,143.5,72.286]
[1642165304761,2.787,143.56,143.5,2.786]
[1642165304963,2.786,143.64,143.5,18.996]
[1642165305162,12.745,143.65,143.5,27.841]
[1642165305460,26.34595651,143.64,143.51,4.32283627]
[1642165305661,2.786,143.63,143.52,2.786]
[1642165305861,2.786,143.63,143.52,2.856]
[1642165306061,2.786,143.63,143.52,13.066]
[1642165306462,2.786,143.63,143.54,11.26032101]
[1642165306660,2.786,143.63,143.54,14.04532101]
[1642165306860,2.786,143.63,143.54,11.51032101]
[1642165307060,3.046,143.63,143.54,11.51032101]
[1642165307263,2.786,143.63,143.54,11.51032101]
[1642165307461,2.786,143.63,143.57,10.4455]
[1642165307670,10.4455,143.64,143.57,10.4455]
[1642165308460,10.7055,143.64,143.57,10.4455]
[1642165308861,41.17872631,143.64,143.57,10.4455]
[1642165309462,41.42872631,143.64,143.57,10.4455]
[1642165309663,41.42872631,143.64,143.55,2.785]
[1642165309865,41.42872631,143.64,143.56,10.4466]
[1642165310063,41.42872631,143.64,143.56,10.6966]
[1642165310269,41.42872631,143.64,143.56,10.4466]
[1642165311066,2.785,143.63,143.56,10.4466]
[1642165311269,10.4474,143.61,143.55,10.447]
[1642165311666,0.51,143.61,143.55,10.447]
[1642165312066,28.65445889,143.61,143.55,10.447]
[1642165312269,28.14445889,143.61,143.55,10.447]
[1642165312869,2.785,143.63,143.55,10.447]
[1642165313070,2.785,143.65,143.55,10.697]
[1642165313267,3.035,143.66,143.55,10.697]
[1642165313467,0.25,143.66,143.56,2.785]
[1642165313669,3.035,143.66,143.6,10.4424]
[1642165314069,0.25,143.66,143.61,2.91404262]
[1642165314368,0.25,143.66,143.58,34.8028]
[1642165314597,0.25,143.66,143.58,35.0528]
[1642165314777,3.033,143.68,143.58,35.0528]
[1642165314975,3.293,143.68,143.56,2.785]
[1642165315176,25.62855037,143.67,143.56,3.035]
[1642165315380,2.785,143.66,143.56,2.785]
[1642165315776,3.295,143.66,143.56,2.785]
[1642165315982,4.99577588,143.66,143.56,2.785]
[1642165316183,4.99577588,143.66,143.54,10.4468]
[1642165316382,27.21153432,143.62,143.52,9.96]
[1642165316582,2.786,143.61,143.51,39.70930189]
[1642165316982,3.046,143.61,143.51,39.70930189]
[1642165317183,72.546,143.61,143.51,2.786]
[1642165317383,72.546,143.61,143.46,79.2732]
[1642165317384,10.4477,143.6,143.46,79.2732]
[1642165317583,2.786,143.59,143.45,9.96]
[1642165317782,2.786,143.59,143.46,2.787]
[1642165317987,3.046,143.59,143.46,2.787]
[1642165318186,94.16133246,143.58,143.47,15.23336433]
[1642165318387,2.786,143.57,143.47,15.23336433]
[1642165318886,10.4529,143.53,143.47,15.23336433]
[1642165319085,10.4529,143.53,143.46,2.787]
[1642165319286,29.98212453,143.55,143.42,50.6966]
[1642165319287,2.787,143.52,143.42,50.6966]
[1642165319486,2.787,143.54,143.42,50.6966]